Cogmind - Beta 15 @@@ ROGUE MODE // 2025.05.27 @ 18:13:20 Player: McSaucyNugget Result: Destroyed by Y-45 Defender with Heavy Assault Rifle Performance ------------- Evolutions (1) 500 Regions Visited (3) 600 Robots Destroyed (18) 90 Value Destroyed (337) 337 Prototype IDs (0) 0 Alien Tech Used (0) 0 Bonus (0) 0 TOTAL SCORE: 1527 Bonus ------- None Cogmind --------- Core Integrity 0/400 Matter 73/300 Energy 85/100 System Corruption 0% Temperature Cool (9) Movement Core (400) Ox7 Location -9/Materials Parts ------- > --- POWER (1) -------- (None) > --- PROPULSION (3) --- (None) > --- UTILITY (3) ------ Large Storage Unit Utility Shielding > --- WEAPON (2) ------- Beam Rifle > --- INVENTORY (15) --- Ion Engine Light Ion Engine Light Ion Engine Light Treads Light Treads Wheel Wheel Wheel Compact Wheel Rocket Launcher Peak State ------------ > --- POWER ------------ Light Nuclear Core > --- PROPULSION ------- Light Treads Light Treads > --- UTILITY ---------- Large Storage Unit Utility Shielding > --- WEAPON ----------- Light Assault Rifle Rocket Launcher > --- INVENTORY -------- Ion Engine Light Ion Engine Light Ion Engine Light Treads Light Treads Wheel Wheel Wheel Compact Wheel Light Assault Rifle Light Assault Rifle Grenade Launcher [Rating: 11] Favorites ----------- Power Light Nuclear Core Engine Ion Engine Power Core Light Nuclear Core Propulsion Light Treads Treads Light Treads Wheel Compact Wheel Utility Large Storage Unit Storage Large Storage Unit Protection Utility Shielding Weapon Light Assault Rifle Energy Gun Beam Rifle Ballistic Gun Light Assault Rifle Launcher Grenade Launcher Build | -11 -10 -10 -9 ------- Run | Yrd Mat Min Mat Slots Evolved 2 | . . . 2 Power . | . . . . Propulsion 1 | . . . 1 Utility 1 | . . . 1 Weapon . | . . . . Parts Attached 18 | 8 7 1 2 Power 2 | 1 1 . . Engine 1 | 1 . . . Core 1 | . 1 . . Reactor . | . . . . Propulsion 6 | 4 2 . . Treads 4 | 2 2 . . Leg . | . . . . Wheel 2 | 2 . . . Hover . | . . . . Flight . | . . . . Utility 4 | 1 2 . 1 Device . | . . . . Storage 2 | 1 1 . . Processor . | . . . . Hackware . | . . . . Protection 2 | . 1 . 1 Artifact . | . . . . Weapon 6 | 2 2 1 1 Energy Gun 1 | . . . 1 Energy Cannon . | . . . . Ballistic Gun 3 | 2 1 . . Ballistic Cannon . | . . . . Launcher 2 | . 1 1 . Special Weapon . | . . . . Impact Weapon . | . . . . Slashing Weapon . | . . . . Piercing Weapon . | . . . . Special Melee Weapon . | . . . . Unidentified Prototypes . | . . . . Parts Lost 8 | . . . 8 Power 1 | . . . 1 Propulsion 2 | . . . 2 Utility 1 | . . . 1 Weapon 4 | . . . 4 Highest Loss Streak 8 | . . . 8 To Critical Strikes . | . . . . Average Backups 7 | 1 6 11 11 Power 2 | . 1 2 3 Propulsion 3 | . 2 5 6 Utility . | . . . . Weapon 2 | . 1 2 2 Tool/Special . | . . . . Unused Backups 5 | . . . 5 Power 2 | . . . 2 Propulsion 3 | . . . 3 Utility . | . . . . Weapon . | . . . . Tool/Special . | . . . . Average Slot Usage (%) 89 | . 90 100 72 Engine 1 | . 3 . . Core 11 | . 11 14 9 Treads 26 | . 28 28 19 Storage 15 | . 17 14 11 Protection 6 | . 1 14 11 Ballistic Gun 25 | . 26 27 20 Launcher 1 | . 1 . . Peak Build Rating 11 | 6 9 11 10 Average Rating 8 | 5 7 9 9 On Entrance 6 | . 6 9 10 Naked Turns . | . . . . Heaviest Build 34 | 12 34 28 28 Greatest Support 40 | 40 40 40 40 Greatest Overweight (x) 7 | . . . 7 Average Overweight (x) . | . . . . Largest Inventory Capacity 15 | 8 15 15 15 Average Capacity 12 | 7 10 15 15 Most Carried 12 | 4 9 12 12 Average Carried 7 | 1 6 11 11 Final Capacity 15 | 8 15 15 15 Final Carried 12 | 4 9 12 10 Class Distribution -------------------- 100% | Mutant Dominant Class ---------------- Mutant | -10/Materials Mutant | -10/Mines Mutant | -9/Materials Resources | -11 -10 -10 -9 ----------- Run | Yrd Mat Min Mat Matter Collected 348 | 118 161 16 53 Remotely . | . . . . Salvage Created 518 | 65 216 24 213 Parts 33 | 3 14 4 12 Haulers Intercepted 1 | . 1 . . Recyclers Shooed . | . . . . Parts Field Recycled . | . . . . Retrieved Matter . | . . . . Parts Self-Destructed . | . . . . Prevented . | . . . . Kills | -11 -10 -10 -9 ------- Run | Yrd Mat Min Mat Combat Hostiles Destroyed 11 | . 5 3 3 Guns 3 | . 2 . 1 AOE 8 | . 3 3 2 Classes Destroyed 10 | 1 5 1 3 Worker 1 | . 1 . . Builder 1 | . 1 . . Tunneler 1 | . . 1 . Hauler 1 | . 1 . . Recycler 2 | 1 . . 1 Mechanic 1 | . . . 1 Swarmer 6 | . 3 3 . Grunt 3 | . 2 . 1 Duelist 1 | . . . 1 Sentry 1 | . . . 1 Best Kill Streak 5 | 1 5 3 4 Combat Bots Only 3 | . 3 3 2 Max Kills in Single Turn 2 | 1 2 2 2 Gunslinging . | . . . . Exploded 2 | . 1 2 1 Melee . | . . . . Uniques/NPCs Destroyed . | . . . . Combat | -11 -10 -10 -9 -------- Run | Yrd Mat Min Mat Hostile Shots Fired 123 | . 51 7 65 Missed 25 | . 11 1 13 Hits 98 | . 40 6 52 Melee 9 | . . . 9 Projectile 89 | . 40 6 43 Critical Strikes 5 | . 1 . 4 Damage Taken 1425 | . 421 46 958 Core 484 | . 82 . 402 Absorbed by Shields . | . . . . Redirected to Shielding 29 | . . 2 27 Core Remaining (%) 83 | 100 . 67 . Volleys Fired 60 | 8 24 3 25 Largest 2 | 2 2 1 2 Hottest 40 | 40 40 33 40 Shots Fired 103 | 16 40 3 44 Gun 93 | 16 35 1 41 Cannon . | . . . . Launcher 10 | . 5 2 3 Special . | . . . . Kinetic 93 | 16 35 1 41 Thermal . | . . . . Explosive 10 | . 5 2 3 Electromagnetic . | . . . . Robot Hit Streak 21 | 3 15 5 21 Robot Miss Streak 3 | 3 3 . 2 Penetration Max . | . . . . Secondary Targets 1 | . . . 1 Max Gunslinging Chain 1 | . . . 1 Shots Hit Robots 73 | 8 23 2 40 Core Hits 34 | 2 18 3 11 Critical Kills . | . . . . Critical Parts Destroyed 1 | . . . 1 Critical Strikes 1 | . . . 1 Destroy 1 | . . . 1 Melee Attacks . | . . . . Impact . | . . . . Slashing . | . . . . Piercing . | . . . . Sneak Attacks . | . . . . Combat Hostiles . | . . . . Follow-up Attacks . | . . . . Damage Inflicted 1330 | 69 482 198 581 Guns 580 | 69 192 10 309 Cannons . | . . . . Explosions 750 | . 290 188 272 Melee . | . . . . Ramming . | . . . . Kinetic 580 | 69 192 10 309 Thermal . | . . . . Explosive 750 | . 290 188 272 Electromagnetic . | . . . . Impact . | . . . . Slashing . | . . . . Piercing . | . . . . Highest Corruption . | . . . . Average Corruption . | . . . . Corruption Purged . | . . . . Corruption Blocked . | . . . . Overload Shots . | . . . . Overflow Damage 25 | . . 20 5 Projectiles . | . . . . Explosions 25 | . . 20 5 Melee . | . . . . Knockbacks . | . . . . Impact . | . . . . Kinetic . | . . . . Secondary . | . . . . Self-Inflicted Damage 97 | . . . 97 Shots 3 | . . . 3 Rammed . | . . . . Targets Rammed . | . . . . Kicked . | . . . . Crushed . | . . . . Highest Temperature 61 | . 61 2 26 Average Temperature 23 | . 32 2 10 Received Heat Transfer 486 | . 189 . 297 Siege Activations . | . . . . Martial Activations . | . . . . Shielding Activations . | . . . . Robots Disrupted . | . . . . Combat Hostiles . | . . . . Robots Corrupted . | . . . . Combat Hostiles . | . . . . Parts Fried . | . . . . Impact Corruptions . | . . . . Robots Melted . | . . . . Combat Hostiles . | . . . . Parts Melted . | . . . . Heat Transferred . | . . . . Parts Sabotaged . | . . . . Parts Stolen . | . . . . Parts Stripped . | . . . . Power Chain Reactions . | . . . . Alert | -11 -10 -10 -9 ------- Run | Yrd Mat Min Mat Maximum Alert Level . | . . . . Low Security (%) 100 | 100 100 100 100 Level 1 . | . . . . Level 2 . | . . . . Level 3 . | . . . . Level 4 . | . . . . Level 5 . | . . . . High Security . | . . . . Max Security . | . . . . Peak Influence 125 | 5 125 86 87 Initial 32 | . . 32 9 Average 22 | . 28 27 8 Influence Increases 423 | 5 190 91 137 Destroy 0b10 Robot/C 220 | . 100 60 60 Destroy 0b10 Robot/NC 35 | 5 15 5 10 Destroy Leader 52 | . 22 10 20 Disable Machine 45 | . 30 . 15 Destroy Structure 56 | . 23 16 17 Lose Combat Pursuer 15 | . . . 15 Influence Decreases 361 | 5 106 149 101 Entered New Map 69 | . . 52 17 Time Decay 242 | 5 106 97 34 Lost Part 40 | . . . 40 Lost Ally 10 | . . . 10 Squads Dispatched 1 | . . . 1 Investigation . | . . . . Extermination . | . . . . Reinforcement 1 | . . . 1 Assault . | . . . . Garrison . | . . . . Intercept . | . . . . Searches Triggered . | . . . . Construction Impeded . | . . . . Haulers Reinforced . | . . . . Active Scanning Responses . | . . . . Cargo Convoy Interrupts . | . . . . Stealth | -11 -10 -10 -9 --------- Run | Yrd Mat Min Mat Distress Signals 1 | . 1 . . Communications Jammed . | . . . . Distress Signals . | . . . . Times Spotted 16 | . 7 3 6 Peak Tracking Total 4 | . 3 3 4 Tactical Retreats 1 | . . . 1 Traps | -11 -10 -10 -9 ------- Run | Yrd Mat Min Mat Traps Triggered . | . . . . Indirectly . | . . . . Trap Hack Attempts . | . . . . Triggered . | . . . . Disarmed . | . . . . Reprogrammed . | . . . . Reused . | . . . . Traps Extracted . | . . . . Installed . | . . . . Triggered . | . . . . Machines | -11 -10 -10 -9 ---------- Run | Yrd Mat Min Mat Machines Disabled 3 | . 2 . 1 Max in Single Turn 1 | . 1 . 1 Machines Repaired . | . . . . Machines Dismantled . | . . . . Machines Sabotaged . | . . . . Overloaded Fab Kills . | . . . . Hacking | -11 -10 -10 -9 --------- Run | Yrd Mat Min Mat Machines Accessed 2 | . 1 . 1 Terminals 2 | . 1 . 1 Fabricators . | . . . . Repair Stations . | . . . . Recycling Units . | . . . . Scanalyzers . | . . . . Garrison Access . | . . . . Total Hacks 3 | . 1 . 2 Successful 2 | . 1 . 1 Failed 1 | . . . 1 Catastrophic . | . . . . Database Lockouts . | . . . . Manual 3 | . 1 . 2 Terminals 3 | . 1 . 2 Fabricators . | . . . . Repair Stations . | . . . . Recycling Units . | . . . . Scanalyzers . | . . . . Garrison Access . | . . . . Terminal Hacks . | . . . . Fabricator Hacks . | . . . . Repair Station Hacks . | . . . . Recycling Unit Hacks . | . . . . Scanalyzer . | . . . . Garrison Access Hacks . | . . . . Unauthorized Hacks 2 | . 1 . 1 Terminals 2 | . 1 . 1 Assimilate 2 | . 1 . 1 Fabricators . | . . . . Repair Stations . | . . . . Recycling Units . | . . . . Scanalyzers . | . . . . Garrison Access . | . . . . Data Cores Recovered . | . . . . Used . | . . . . Hacking Detections . | . . . . Full Trace Events . | . . . . Feedback Events . | . . . . Feedback Blocked . | . . . . Robot Schematics Acquired . | . . . . Robots Built . | . . . . Authchips . | . . . . Time . | . . . . Total Robot Build Rating . | . . . . Part Schematics Acquired . | . . . . Parts Built . | . . . . Authchips . | . . . . Time . | . . . . Total Part Build Rating . | . . . . Parts Repaired . | . . . . Time . | . . . . Parts Recycled . | . . . . Recycled Matter . | . . . . Retrieved Matter . | . . . . Retrieved Components . | . . . . Parts Scanalyzed . | . . . . Part Schematics Acquired . | . . . . Parts Damaged . | . . . . Bothacking | -11 -10 -10 -9 ------------ Run | Yrd Mat Min Mat Used RIF Installer . | . . . . Robots Hacked . | . . . . Non-combat . | . . . . Combat . | . . . . Robot Hacks Applied . | . . . . Relay Couplers Released . | . . . . Fabnet Peak Effective % . | . . . . Robots Rewired . | . . . . Allies Hacked . | . . . . Hacks Repelled . | . . . . Allies | -11 -10 -10 -9 -------- Run | Yrd Mat Min Mat Total Allies 1 | . 1 . . Largest Group 1 | . 1 1 1 Highest-Rated Group 10 | . 10 10 10 Highest-Rated Ally 10 | . 10 10 10 Total Orders . | . . . . Ally Attacks . | . . . . Total Damage . | . . . . Kills . | . . . . Allies Corrupted . | . . . . Allies Melted . | . . . . Intel | -11 -10 -10 -9 ------- Run | Yrd Mat Min Mat Active Infowar (turns) . | . . . . Robot Analysis Total . | . . . . Derelict Logs Recovered . | . . . . Drone Launches . | . . . . Drone Recoveries . | . . . . Exploration | -11 -10 -10 -9 ------------- Run | Yrd Mat Min Mat Turns Passed 1194 | 138 554 314 188 Spaces Moved 644 | 79 303 189 73 Core 2 | 1 . . 1 Treads 610 | 46 303 189 72 Legs . | . . . . Wheels 32 | 32 . . . Hover . | . . . . Flight . | . . . . Fastest Speed 50 | 50 160 160 160 Average Speed 156 | 130 160 160 163 Slowest Speed 400 | 160 160 160 400 Overloaded Moves . | . . . . Propulsion Burnouts . | . . . . Robots Hopped . | . . . . Potential Cave-ins . | . . . . Cave-ins Triggered . | . . . . Exploration Rate (%) 24 | 6 42 39 11 Regions Visited 3 Branch Regions 1 Pre-discovered Areas . | . . . . Known Exits Taken . | . . . . Unknown Exits Taken 3 | 1 1 1 . Scrap Searched . | . . . . Spaces Dug . | . . . . Terrain Destroyed 66 | . 30 20 16 Melee . | . . . . Projectile . | . . . . AOE 66 | . 30 20 16 Terrain Rammed . | . . . . Walls Destroyed . | . . . . Machines Disabled . | . . . . Actions | -11 -10 -10 -9 --------- Run | Yrd Mat Min Mat Total 737 | 98 337 197 105 Wait 3 | . . 1 2 Move 641 | 78 302 188 73 Hop . | . . . . Pick Up 9 | 4 2 3 . Fast Attach 11 | 6 2 . 3 Attach 2 | . . . 2 Detach 1 | . 1 . . Swap 9 | 2 5 2 . Drop 1 | . 1 . . Fire 60 | 8 24 3 25 Melee . | . . . . Ram . | . . . . Kick . | . . . . Crush . | . . . . Escape Stasis . | . . . . Rewire . | . . . . Trap . | . . . . Miscellaneous . | . . . . Route ------- -11/Scrapyard -10/Materials (discovered 3 exits: *Mat / [*Min] / [*Sub]) -10/Mines -9/Materials History --------- Turn | Location | Event 29 | -11/Scrapyard | Discovered new exit (range 15) 139 | -11/Scrapyard | Entered Materials 314 | -10/Materials | Build established: Mutant 395 | -10/Materials | Discovered new exit (range 10) 458 | -10/Materials | Discovered new exit (range 15) 574 | -10/Materials | Discovered new exit (range 15) 693 | -10/Materials | Entered Mines 693 | -10/Mines | Accompanied by 1 ally 727 | -10/Mines | Met a Derelict bent on vengeance 830 | -10/Mines | Received a Rocket Launcher from a helpful Derelict 896 | -10/Mines | Discovered new exit (range 7) 1007 | -10/Mines | Entered Materials 1007 | -9/Materials | Accompanied by 1 ally 1007 | -9/Materials | Evolved 2 slots: Propulsion x1, Utility x1 1179 | -9/Materials | Core integrity fell below 50% 1187 | -9/Materials | Core integrity fell below 20% 1195 | -9/Materials | Destroyed by Y-45 Defender with Heavy Assault Rifle Last Messages --------------- 01168_ Lgt. Nuclear Core destroyed. 01171_ Lgt. Treads destroyed. 01174_ R-06 Scavenger collects Hacking Suite. 01174_ Lgt. Treads destroyed. 01176_ Lgt. Assault Rifle severed. 01177_ Acquired Lgt. Assault Rifle. 01177_ Lgt. Assault Rifle destroyed. 01179_ R-06 Scavenger collects Lgt. Treads. 01180_ Lgt. Assault Rifle destroyed. 01183_ Critical hit (Burn: +37). 01183_ L-31 Rogue destroyed. 01183_ M-13 Machinist destroyed. 01183_ Recycling Unit disabled. 01185_ G-34 Mercenary destroyed. 01185_ R-06 Scavenger destroyed. 01187_ Grenade Launcher destroyed. 01187_ Destroyed Grenade Launcher. 01189_ Acquired Core Shielding. 01194_ Acquired Beam Rifle. 01195_ Core Shielding destroyed. Map ----- +----------------------------------------------------+ | ????????????????????????????????????????? | | ????????????????????????????????????????? | | ????????????????????????????????????????? | | ????????????????????????????????????????? | | ????????????????????????????????????????? | | ????????????????????????????????????????? | | ????????????????????????????????????????? | | ????????????????????????????????????????? | | ????????????????????????????????????????? | | ????????????????????????????????????????? | | ????????????????????????????????????????? | | ????????????????????????????????????????? | | ????????????????????????????????????????? | | ????????????????????????????????????????? | | ????????????????????????????????????????? | | ????????????????????????????????????????? | | ########????????????????????????????????? | | # #????????????????????????????????? | | # T #????????????????????????????????? | | # #????????????????????????????????? | | # #????????????????????????????????? | | # #???????????##???????????????????? | | # #??#+####### ##??????????????????? | | ?###+###??# # ! #??????????????????? | | ?# #### # "" #??????????????????? | | ?# "Y@ #??????????????????? | | ?# T % = #??????????????????? | | ?# Y* #??????????????????? | | ?# ##### === #??????????????????? | | ?### ###???# * !##??????????????????? | | ???# #?????# # ! % #???????????????????? | | ???# #???? Y ###=##???????????????????? | | ???# #??? "" ???=#????????????????????? | | ???# #??= ?"" ??? #????????????????????? | | ???# #?= S" ??? #????????????????????? | | ???# ## ? ?????#????????????????????? | | ???# # ??"?? ??????????????????????????? | | ???# ## ????" ??????????????????????????? | | ???# #??????" ??????????????????????????? | | ???# #?????? ???????????????????????????? | | ???# #???##+###?????????????????????????? | | ???# #???# ??????????????????????????? | | ???# #???# ###????????????????????????? | | ???# #???# # ????????????????????????? | | ???# #???# # ????????????????????????? | | ???# #???# # "???????????????????????? | | ???# ##### # "???????????????????????? | | ???# # ""??????????????????????? | | ???####### # "" ?????????????????????? | | ?????????# # """#????????????????????? | +----------------------------------------------------+ Best States ------------- Heat Dissipation 28 Energy Generation 14 Energy Capacity 250 Matter Stores 183 Matter Capacity 300 Sight Range 16 Terrain Scan Density 10 Core Shielding 20 Utility Shielding 33 Evasion (%) 42 Recoil Reduction 2 Item Schematics ----------------- None Robot Schematics ------------------ None Fabricated ------------ Nothing Repaired ---------- Nothing Alien Tech Used ----------------- None Achievements -------------- None Challenges ------------ None Game ------ Seed AntigravFissionCompactor Manual? 0 Play Time 00:07:36 Cumulative 59.8 hours Start 2025.05.27 @ 18:06:44 End 2025.05.27 @ 18:13:20 Sessions 1 Manual Loads 0 Difficulty Rogue Special Mode None Game No. 43 Rogue 43 Adventurer 0 Explorer 0 Win Type - Total 5 Types 2/0/1/0/1/0/0/0/0/1 Lore% 51 Gallery% 48 Achievement% 53 Wizard Run 0 Options --------- Layout 0 ASCII 0 Keyboard 1 Movement Vi Keybinds 0 Fullscreen 2 Font 18/SmallcapsGlow Map View 76x50 Zoom Use 0% Tactical HUD 1 Map Filters NONE Filters NONE Steam 1 RUN: 8f22ce55-9e5b-4265-a288-7fd8b8ecfbe4